{"text_format":"3","workbook":"xlsx","n_sheets":2,"sheets":["Začíname","Plánovač dovolenkového rozpočtu"],"not_rendered":{"defined_names":1},"read":"whole","date_system":"1900"}

{"sheet":"Začíname","index":0,"n_rows":7,"n_cols":2,"rows_kept":7}
[null,"INFORMÁCIE O TEJTO ŠABLÓNE"]
[null,"Pomocou tohto Plánovač dovolenkového rozpočtu môžete sledovať svoje výdavky."]
[null,"Do tabuliek zadajte naplánované a skutočné Rozpočet minuté na jednotlivé položky."]
[null,"Dovolenkový rozpočet, celková skutočná minutá suma a rozdiel sa vypočítajú automaticky."]
[null,"Poznámka: "]
[null,"V hárku PLÁNOVAČ DOVOLENKOVÉHO ROZPOČTU sú v stĺpci A uvedené ďalšie pokyny. Tento text je zámerne skrytý. Ak chcete text odstrániť, vyberte stĺpec A a potom stlačte kláves DELETE. Ak chcete text zobraziť, vyberte stĺpec A a potom zmeňte farbu písma."]
[null,"Ak chcete získať ďalšie informácie o tabuľkách, v tabuľke stlačte kláves SHIFT a potom kláves F10, vyberte možnosť TABUĽKA a potom vyberte položku ALTERNATÍVNY TEXT."]

{"sheet":"Plánovač dovolenkového rozpočtu","index":1,"n_rows":32,"n_cols":12,"rows_kept":32,"merged":[[1,1,5,4],[2,8,2,9],[3,8,3,9],[4,8,4,9],[6,1,6,4],[6,8,6,11],[15,1,15,4],[15,8,15,11],[25,1,25,4],[25,8,25,11]]}
["Do príslušných tabuliek tohto hárka zadajte naplánované a skutočné rozpočet pre jednotlivé kategórie. V bunkách v tomto stĺpci na nachádzajú užitočné pokyny na používanie tohto hárka. Začnite stlačením šípky nadol. "]
["V bunke napravo sa nachádza nadpis tohto hárka.","Plánovač \ndovolenkového rozpočtu"]
["V bunke K3 sa automaticky vypočíta dovolenkový rozpočet.",{"$nulls":7},"DOVOLENKOVÝ ROZPOČET",null,{"$f":"SUM(Darčeky[Rozpočet],Balenie[Rozpočet],(Cestovanie[Rozpočet],(SviatočnéJedlo[Rozpočet],(Zábava[Rozpočet],Rôzne[Rozpočet]))))","v":{"v":750,"d":"750.00 €"}}]
["V bunke K4 sa automaticky vypočítajú skutočné výdavky.",{"$nulls":7},"SKUTOČNÉ VÝDAVKY",null,{"$f":"SUM((Darčeky[Skutočné],(Balenie[Skutočné],(Cestovanie[Skutočné],(SviatočnéJedlo[Skutočné],(Zábava[Skutočné],(Rôzne[Skutočné])))))))","v":{"v":820,"d":"820.00 €"}}]
["V bunke K5 sa automaticky vypočíta rozdiel. Ďalší pokyn sa nachádza v bunke A7.",{"$nulls":7},"ROZDIEL (nad alebo pod úrovňou rozpočtu)",null,{"$f":"SUM(K3-K4)","v":{"v":-70,"d":"-70.00 €"}}]
[]
["V bunke napravo sa nachádza označenie Darčeky a v bunke I7 označenie Sviatočné jedlo.","Darčeky",{"$nulls":6},"Sviatočné jedlo"]
["Do tabuľky začínajúcej v bunke napravo zadajte výdavky na darčeky a do tabuľky začínajúcej v bunke I8 sviatočné jedlo. Ďalší pokyn sa nachádza v bunke A16.","Položka","Rozpočet","Skutočné","Rozdiel",{"$nulls":3},"Položka","Rozpočet","Skutočné","Rozdiel"]
[null,"Rodina",{"v":500,"d":"500.00 €"},{"v":495,"d":"495.00 €"},{"$f":"Darčeky[[#This Row],[Rozpočet]]-Darčeky[[#This Row],[Skutočné]]","v":{"v":5,"d":"5.00 €"}},{"$nulls":3},"Potraviny",null,null,{"$f":"SviatočnéJedlo[[#This Row],[Rozpočet]]-SviatočnéJedlo[[#This Row],[Skutočné]]","v":{"v":0,"d":"0.00 €"}}]
[null,"Priatelia",{"v":250,"d":"250.00 €"},{"v":325,"d":"325.00 €"},{"$f":"Darčeky[[#This Row],[Rozpočet]]-Darčeky[[#This Row],[Skutočné]]","v":{"v":-75,"d":"-75.00 €"}},{"$nulls":3},"Pitie",null,null,{"$f":"SviatočnéJedlo[[#This Row],[Rozpočet]]-SviatočnéJedlo[[#This Row],[Skutočné]]","v":{"v":0,"d":"0.00 €"}}]
[null,"Kolegovia",null,null,{"$f":"Darčeky[[#This Row],[Rozpočet]]-Darčeky[[#This Row],[Skutočné]]","v":{"v":0,"d":"0.00 €"}},{"$nulls":3},"Výzdoba",null,null,{"$f":"SviatočnéJedlo[[#This Row],[Rozpočet]]-SviatočnéJedlo[[#This Row],[Skutočné]]","v":{"v":0,"d":"0.00 €"}}]
[null,"Učitelia, pestúnky, opatrovateľky atď.",null,null,{"$f":"Darčeky[[#This Row],[Rozpočet]]-Darčeky[[#This Row],[Skutočné]]","v":{"v":0,"d":"0.00 €"}},{"$nulls":3},"Iné (stlačením klávesu Tab v poslednom stĺpci tohto riadka pridáte riadok)",null,null,{"$f":"SviatočnéJedlo[[#This Row],[Rozpočet]]-SviatočnéJedlo[[#This Row],[Skutočné]]","v":{"v":0,"d":"0.00 €"}}]
[null,"Charitatívne príspevky",null,null,{"$f":"Darčeky[[#This Row],[Rozpočet]]-Darčeky[[#This Row],[Skutočné]]","v":{"v":0,"d":"0.00 €"}},{"$nulls":3},"Celková hodnota",{"$f":"SUBTOTAL(109,SviatočnéJedlo[Rozpočet])","v":{"v":0,"d":"0.00 €"}},{"$f":"SUBTOTAL(109,SviatočnéJedlo[Skutočné])","v":{"v":0,"d":"0.00 €"}},{"$f":"SUBTOTAL(109,SviatočnéJedlo[Rozdiel])","v":{"v":0,"d":"0.00 €"}}]
[null,"Iné (stlačením klávesu Tab v poslednom stĺpci tohto riadka pridáte riadok)",null,null,{"$f":"Darčeky[[#This Row],[Rozpočet]]-Darčeky[[#This Row],[Skutočné]]","v":{"v":0,"d":"0.00 €"}}]
[null,"Celková hodnota",{"$f":"SUBTOTAL(109,Darčeky[Rozpočet])","v":{"v":750,"d":"750.00 €"}},{"$f":"SUBTOTAL(109,Darčeky[Skutočné])","v":{"v":820,"d":"820.00 €"}},{"$f":"SUBTOTAL(109,Darčeky[Rozdiel])","v":{"v":-70,"d":"-70.00 €"}}]
["V balenie napravo sa nachádza menovka darčeka a v bunke I16 označenie Zábava.","Balenie",{"$nulls":6},"Zábava"]
["Do tabuľky začínajúcej v bunke napravo zadajte výdavky na balenie a do tabuľky začínajúcej v bunke I17 zadajte položky zábava. Ďalší pokyn sa nachádza v bunke A26.","Položka","Rozpočet","Skutočné","Rozdiel",{"$nulls":3},"Položka","Rozpočet","Skutočné","Rozdiel"]
[null,"Darčekové balenie",null,null,{"$f":"Balenie[[#This Row],[Rozpočet]]-Balenie[[#This Row],[Skutočné]]","v":{"v":0,"d":"0.00 €"}},{"$nulls":3},"Pomoc s oslavou (barman, catering, upratovacia služba atď.)",null,null,{"$f":"Zábava[[#This Row],[Rozpočet]]-Zábava[[#This Row],[Skutočné]]","v":{"v":0,"d":"0.00 €"}}]
[null,"Menovky",null,null,{"$f":"Balenie[[#This Row],[Rozpočet]]-Balenie[[#This Row],[Skutočné]]","v":{"v":0,"d":"0.00 €"}},{"$nulls":3},"Výzdoba",null,null,{"$f":"Zábava[[#This Row],[Rozpočet]]-Zábava[[#This Row],[Skutočné]]","v":{"v":0,"d":"0.00 €"}}]
[null,"Pomôcky (stuha, páska atď.)",null,null,{"$f":"Balenie[[#This Row],[Rozpočet]]-Balenie[[#This Row],[Skutočné]]","v":{"v":0,"d":"0.00 €"}},{"$nulls":3},"Jedlá a nápoje",null,null,{"$f":"Zábava[[#This Row],[Rozpočet]]-Zábava[[#This Row],[Skutočné]]","v":{"v":0,"d":"0.00 €"}}]
[null,"Škatule",null,null,{"$f":"Balenie[[#This Row],[Rozpočet]]-Balenie[[#This Row],[Skutočné]]","v":{"v":0,"d":"0.00 €"}},{"$nulls":3},"Oblečenie",null,null,{"$f":"Zábava[[#This Row],[Rozpočet]]-Zábava[[#This Row],[Skutočné]]","v":{"v":0,"d":"0.00 €"}}]
[null,"Poštovné",null,null,{"$f":"Balenie[[#This Row],[Rozpočet]]-Balenie[[#This Row],[Skutočné]]","v":{"v":0,"d":"0.00 €"}},{"$nulls":3},"Vstupenky",null,null,{"$f":"Zábava[[#This Row],[Rozpočet]]-Zábava[[#This Row],[Skutočné]]","v":{"v":0,"d":"0.00 €"}}]
[null,"Iné (stlačením klávesu Tab v poslednom stĺpci tohto riadka pridáte riadok)",null,null,{"$f":"Balenie[[#This Row],[Rozpočet]]-Balenie[[#This Row],[Skutočné]]","v":{"v":0,"d":"0.00 €"}},{"$nulls":3},"Večere v reštaurácii",null,null,{"$f":"Zábava[[#This Row],[Rozpočet]]-Zábava[[#This Row],[Skutočné]]","v":{"v":0,"d":"0.00 €"}}]
[null,"Celková hodnota",{"$f":"SUBTOTAL(109,Balenie[Rozpočet])","v":{"v":0,"d":"0.00 €"}},{"$f":"SUBTOTAL(109,Balenie[Skutočné])","v":{"v":0,"d":"0.00 €"}},{"$f":"SUBTOTAL(109,Balenie[Rozdiel])","v":{"v":0,"d":"0.00 €"}},{"$nulls":3},"Iné (stlačením klávesu Tab v poslednom stĺpci tohto riadka pridáte riadok)",null,null,{"$f":"Zábava[[#This Row],[Rozpočet]]-Zábava[[#This Row],[Skutočné]]","v":{"v":0,"d":"0.00 €"}}]
[{"$nulls":8},"Celková hodnota",{"$f":"SUBTOTAL(109,Zábava[Rozpočet])","v":{"v":0,"d":"0.00 €"}},{"$f":"SUBTOTAL(109,Zábava[Skutočné])","v":{"v":0,"d":"0.00 €"}},{"$f":"SUBTOTAL(109,Zábava[Rozdiel])","v":{"v":0,"d":"0.00 €"}}]
["V bunke napravo sa nachádza označenie Cestovanie a v bunke I26 označenie Rôzne.","Cestovanie",{"$nulls":6},"Rôzne"]
["Do tabuľky začínajúcej v bunke napravo zadajte výdavky na cestovanie a do tabuľky začínajúcej v bunke I27 zadajte rôzne výdavky.","Položka","Rozpočet","Skutočné","Rozdiel",{"$nulls":3},"Položka","Rozpočet","Skutočné","Rozdiel"]
[null,"Letenky",null,null,{"$f":"Cestovanie[[#This Row],[Rozpočet]]-Cestovanie[[#This Row],[Skutočné]]","v":{"v":0,"d":"0.00 €"}},{"$nulls":3},"Fotografie z dovolenky",null,null,{"$f":"Rôzne[[#This Row],[Rozpočet]]-Rôzne[[#This Row],[Skutočné]]","v":{"v":0,"d":"0.00 €"}}]
[null,"Ubytovanie",null,null,{"$f":"Cestovanie[[#This Row],[Rozpočet]]-Cestovanie[[#This Row],[Skutočné]]","v":{"v":0,"d":"0.00 €"}},{"$nulls":3},"Pohonné hmoty ",null,null,{"$f":"Rôzne[[#This Row],[Rozpočet]]-Rôzne[[#This Row],[Skutočné]]","v":{"v":0,"d":"0.00 €"}}]
[null,"Doprava",null,null,{"$f":"Cestovanie[[#This Row],[Rozpočet]]-Cestovanie[[#This Row],[Skutočné]]","v":{"v":0,"d":"0.00 €"}},{"$nulls":3},"Iné (stlačením klávesu Tab v poslednom stĺpci tohto riadka pridáte riadok)",null,null,{"$f":"Rôzne[[#This Row],[Rozpočet]]-Rôzne[[#This Row],[Skutočné]]","v":{"v":0,"d":"0.00 €"}}]
[null,"Iné (stlačením klávesu Tab v poslednom stĺpci tohto riadka pridáte riadok)",null,null,{"$f":"Cestovanie[[#This Row],[Rozpočet]]-Cestovanie[[#This Row],[Skutočné]]","v":{"v":0,"d":"0.00 €"}},{"$nulls":3},"Celková hodnota",{"$f":"SUBTOTAL(109,Rôzne[Rozpočet])","v":{"v":0,"d":"0.00 €"}},{"$f":"SUBTOTAL(109,Rôzne[Skutočné])","v":{"v":0,"d":"0.00 €"}},{"$f":"SUBTOTAL(109,Rôzne[Rozdiel])","v":{"v":0,"d":"0.00 €"}}]
[null,"Celková hodnota",{"$f":"SUBTOTAL(109,Cestovanie[Rozpočet])","v":{"v":0,"d":"0.00 €"}},{"$f":"SUBTOTAL(109,Cestovanie[Skutočné])","v":{"v":0,"d":"0.00 €"}},{"$f":"SUBTOTAL(109,Cestovanie[Rozdiel])","v":{"v":0,"d":"0.00 €"}}]